Cogmind - Beta 12 @@@ ROGUE MODE // 2023.12.17 @ 08:03:28 Player: Dosh Result: Destroyed by L-31 Rogue with Katana Performance ------------- Evolutions (0) 0 Regions Visited (4) 800 Robots Destroyed (17) 85 Value Destroyed (333) 333 Prototype IDs (23) 460 Alien Tech Used (0) 0 Bonus (300) 300 TOTAL SCORE: 1978 Bonus ------- Aligned with FarCom 300 Cogmind --------- Core Integrity 0/250 Matter 153/300 Energy 250/250 System Corruption 1% Temperature Cool (68) Movement Treading (160) Location -9/Mines Parts ------- > --- POWER (1) -------- Ion Engine > --- PROPULSION (2) --- Light Treads Light Treads > --- UTILITY (2) ------ Large Storage Unit > --- WEAPON (2) ------- Heavy Battle Rifle Light Cannon > --- INVENTORY (15) --- Light Treads Small Storage Unit High-capacity Storage Unit Cloak of Protection Hacking Suite EM Pulse Gun Medium Laser Grenade Launcher Hammer Peak State ------------ > --- POWER ------------ Ion Engine > --- PROPULSION ------- Light Treads Light Treads > --- UTILITY ---------- Large Storage Unit > --- WEAPON ----------- Heavy Battle Rifle Light Cannon > --- INVENTORY -------- Light Treads Small Storage Unit High-capacity Storage Unit Cloak of Protection Hacking Suite EM Pulse Gun Medium Laser Grenade Launcher Hammer [Rating: 10] Favorites ----------- Power Light Ion Engine Engine Light Ion Engine Propulsion Light Treads Treads Light Treads Utility Large Storage Unit Storage Large Storage Unit Weapon Light Cannon Energy Gun Medium Laser Ballistic Gun Assault Rifle Ballistic Cannon Light Cannon Launcher Grenade Launcher Build | -11 -10 -10 -10 -9 ------- Run | Jun Mat Min Exi Min Slots Evolved . | . . . . . Power . | . . . . . Propulsion . | . . . . . Utility . | . . . . . Weapon . | . . . . . Parts Attached 16 | 6 4 . . 6 Power 3 | 1 1 . . 1 Engine 3 | 1 1 . . 1 Core . | . . . . . Reactor . | . . . . . Propulsion 3 | 2 . . . 1 Treads 3 | 2 . . . 1 Leg . | . . . . . Wheel . | . . . . . Hover . | . . . . . Flight . | . . . . . Utility 2 | 1 1 . . . Device . | . . . . . Storage 2 | 1 1 . . . Processor . | . . . . . Hackware . | . . . . . Protection . | . . . . . Artifact . | . . . . . Weapon 8 | 2 2 . . 4 Energy Gun 2 | 1 . . . 1 Energy Cannon . | . . . . . Ballistic Gun 3 | 1 1 . . 1 Ballistic Cannon 2 | . 1 . . 1 Launcher 1 | . . . . 1 Special Weapon . | . . . . . Impact Weapon . | . . . . . Slashing Weapon . | . . . . . Piercing Weapon . | . . . . . Special Melee Weapon . | . . . . . Unidentified Prototypes . | . . . . . Parts Lost 4 | . 1 . . 3 Power 2 | . 1 . . 1 Propulsion 1 | . . . . 1 Utility . | . . . . . Weapon 1 | . . . . 1 Highest Loss Streak 3 | . 1 . . 3 To Critical Strikes . | . . . . . Average Slot Usage (%) 85 | . 87 85 85 84 Engine 13 | . 12 14 14 14 Treads 27 | . 28 28 28 27 Storage 15 | . 17 14 14 14 Energy Gun 2 | . 5 . . 1 Ballistic Gun 13 | . 13 14 14 12 Ballistic Cannon 11 | . 8 14 14 13 Naked Turns . | . . . . . Heaviest Build 33 | 12 33 28 28 32 Greatest Support 40 | 40 40 40 40 40 Greatest Overweight (x) 1 | . . . . 1 Average Overweight (x) . | . . . . . Largest Inventory Capacity 15 | 8 15 15 15 15 Average Capacity 13 | 6 12 15 15 15 Most Carried 11 | 2 10 10 11 11 Average Carried 7 | 1 5 10 10 9 Final Capacity 15 | 8 15 15 15 15 Final Carried 11 | 2 10 10 11 9 Class Distribution -------------------- 100% | Mutant Dominant Class ---------------- Mutant | -10/Materials Mutant | -10/Mines Mutant | -10/Exiles Mutant | -9/Mines Resources | -11 -10 -10 -10 -9 ----------- Run | Jun Mat Min Exi Min Matter Collected 608 | 230 273 77 . 28 Remotely . | . . . . . Salvage Created 504 | . 361 113 . 30 Parts 33 | . 28 5 . . Haulers Intercepted 1 | . 1 . . . Recyclers Shooed 1 | . 1 . . . Parts Field Recycled . | . . . . . Retrieved Matter . | . . . . . Parts Self-Destructed . | . . . . . Prevented . | . . . . . Kills | -11 -10 -10 -10 -9 ------- Run | Jun Mat Min Exi Min Combat Hostiles Destroyed 18 | . 7 5 . 6 Guns 7 | . 4 3 . . Cannons 5 | . 3 2 . . AOE 6 | . . . . 6 Classes Destroyed 7 | . 6 . . 1 Hauler 1 | . 1 . . . Recycler 1 | . 1 . . . Operator 1 | . 1 . . . Watcher 2 | . 2 . . . Swarmer 6 | . 3 3 . . Grunt 6 | . 4 2 . . Assembled 6 | . . . . 6 Best Kill Streak 6 | . 3 3 . 6 Combat Bots Only 6 | . 3 3 . 6 Max Kills in Single Turn 4 | . 1 1 . 4 Gunslinging . | . . . . . Exploded 4 | . . . . 4 Melee . | . . . . . Uniques/NPCs Destroyed . | . . . . . Combat | -11 -10 -10 -10 -9 -------- Run | Jun Mat Min Exi Min Damage Taken 1012 | . 452 166 . 394 Core 266 | . 169 39 . 58 Absorbed by Shields . | . . . . . Regen/Repaired (Parts) 83 | . 83 . . . Core Remaining (%) 100 | 100 . . . . Volleys Fired 69 | . 47 12 . 10 Largest 2 | . 2 2 . 2 Hottest 70 | . 70 55 . 68 Shots Fired 135 | . 92 24 . 19 Gun 94 | . 72 12 . 10 Cannon 39 | . 20 12 . 7 Launcher 2 | . . . . 2 Special . | . . . . . Kinetic 108 | . 67 24 . 17 Thermal 25 | . 25 . . . Explosive 2 | . . . . 2 Electromagnetic . | . . . . . Robot Hit Streak 7 | . 7 4 . 3 Robot Miss Streak 11 | . 11 4 . 4 Penetration Max . | . . . . . Secondary Targets . | . . . . . Shots Hit Robots 64 | . 43 13 . 8 Core Hits 36 | . 19 6 . 11 Critical Kills 1 | . 1 . . . Critical Parts Destroyed . | . . . . . Critical Strikes 3 | . 3 . . . Burn 2 | . 2 . . . Destroy 1 | . 1 . . . Melee Attacks . | . . . . . Impact . | . . . . . Slashing . | . . . . . Piercing . | . . . . . Sneak Attacks . | . . . . . Combat Hostiles . | . . . . . Follow-up Attacks . | . . . . . Damage Inflicted 1230 | . 631 206 . 393 Guns 620 | . 456 90 . 74 Cannons 356 | . 175 115 . 66 Explosions 253 | . . . . 253 Melee . | . . . . . Ramming 1 | . . 1 . . Kinetic 800 | . 455 205 . 140 Thermal 176 | . 176 . . . Explosive 253 | . . . . 253 Electromagnetic . | . . . . . Impact . | . . . . . Slashing . | . . . . . Piercing . | . . . . . Highest Corruption 1 | . 1 1 1 1 Average Corruption 1 | . 1 1 1 1 Corruption Purged . | . . . . . Corruption Blocked . | . . . . . Effects 11 | . 4 2 2 3 Message Errors 4 | . 1 1 . 2 Matter Fused 5 | . 2 . 2 1 Heat Flow Errors 1 | . 1 . . . Data Loss (major) 1 | . . 1 . . Overload Shots . | . . . . . Overflow Damage 9 | . . . . 9 Projectiles . | . . . . . Explosions 9 | . . . . 9 Melee . | . . . . . Knockbacks 5 | . 4 . . 1 Impact . | . . . . . Kinetic 5 | . 4 . . 1 Secondary . | . . . . . Self-Inflicted Damage . | . . . . . Shots . | . . . . . Rammed 1 | . . 1 . . Targets Rammed 1 | . . 1 . . Kicked . | . . . . . Crushed . | . . . . . Highest Temperature 150 | . 150 12 . 68 Average Temperature 39 | . 43 7 . 32 Received Heat Transfer 218 | . 132 36 . 50 Siege Activations . | . . . . . Robots Corrupted . | . . . . . Combat Hostiles . | . . . . . Parts Fried . | . . . . . Impact Corruptions . | . . . . . Robots Melted . | . . . . . Combat Hostiles . | . . . . . Parts Melted . | . . . . . Heat Transferred 666 | . 666 . . . Parts Sabotaged . | . . . . . Parts Stolen . | . . . . . Parts Stripped . | . . . . . Power Chain Reactions . | . . . . . Missiles Intercepted . | . . . . . Alert | -11 -10 -10 -10 -9 ------- Run | Jun Mat Min Exi Min Peak Influence 191 | . 191 142 . 17 Initial 22 | . . 22 . . Average 55 | . 82 79 . . Maximum Alert Level . | . . . . . Low Security (%) 100 | 100 100 100 . 100 Level 1 . | . . . . . Level 2 . | . . . . . Level 3 . | . . . . . Level 4 . | . . . . . Level 5 . | . . . . . High Security . | . . . . . Max Security . | . . . . . Squads Dispatched 2 | . 2 . . . Investigation 1 | . 1 . . . Extermination . | . . . . . Reinforcement 1 | . 1 . . . Assault . | . . . . . Garrison . | . . . . . Intercept . | . . . . . Searches Triggered . | . . . . . Construction Impeded . | . . . . . Haulers Reinforced . | . . . . . Active Scanning Responses . | . . . . . Cargo Convoy Interrupts . | . . . . . Stealth | -11 -10 -10 -10 -9 --------- Run | Jun Mat Min Exi Min Distress Signals 1 | . 1 . . . Communications Jammed . | . . . . . Distress Signals . | . . . . . Times Spotted 31 | . 15 5 . 11 Peak Tracking Total 11 | . 3 3 . 11 Tactical Retreats 4 | . 4 . . . Traps | -11 -10 -10 -10 -9 ------- Run | Jun Mat Min Exi Min Traps Triggered 1 | . 1 . . . Indirectly . | . . . . . Trap Hack Attempts . | . . . . . Triggered . | . . . . . Disarmed . | . . . . . Reprogrammed . | . . . . . Reused . | . . . . . Traps Extracted . | . . . . . Installed . | . . . . . Triggered . | . . . . . Machines | -11 -10 -10 -10 -9 ---------- Run | Jun Mat Min Exi Min Machines Disabled . | . . . . . Max in Single Turn . | . . . . . Machines Repaired . | . . . . . Machines Sabotaged . | . . . . . Overloaded Fab Kills . | . . . . . Hacking | -11 -10 -10 -10 -9 --------- Run | Jun Mat Min Exi Min Machines Accessed 4 | . 3 . 1 . Terminals 2 | . 2 . . . Fabricators . | . . . . . Repair Stations 1 | . 1 . . . Recycling Units . | . . . . . Scanalyzers . | . . . . . Garrison Access . | . . . . . Total Hacks 12 | . 11 . 1 . Successful 6 | . 5 . 1 . Failed 6 | . 6 . . . Catastrophic . | . . . . . Database Lockouts . | . . . . . Manual 9 | . 8 . 1 . Terminals 7 | . 7 . . . Fabricators . | . . . . . Repair Stations 4 | . 4 . . . Recycling Units . | . . . . . Scanalyzers . | . . . . . Garrison Access . | . . . . . Terminal Hacks 3 | . 2 . 1 . Robot Analysis 2 | . 2 . . . EX-Prototype ID Bank 1 | . . . 1 . Fabricator Hacks . | . . . . . Repair Station Hacks 2 | . 2 . . . Scan Component 1 | . 1 . . . Repair 1 | . 1 . . . Recycling Unit Hacks . | . . . . . Scanalyzer . | . . . . . Garrison Access Hacks . | . . . . . Unauthorized Hacks 1 | . 1 . . . Terminals 1 | . 1 . . . Botnet 1 | . 1 . . . Fabricators . | . . . . . Repair Stations . | . . . . . Recycling Units . | . . . . . Scanalyzers . | . . . . . Garrison Access . | . . . . . Data Cores Recovered . | . . . . . Used . | . . . . . Hacking Detections 4 | . 4 . . . Full Trace Events 2 | . 2 . . . Feedback Events . | . . . . . Feedback Blocked . | . . . . . Robot Schematics Acquired . | . . . . . Robots Built . | . . . . . Authchips . | . . . . . Time . | . . . . . Total Robot Build Rating . | . . . . . Part Schematics Acquired . | . . . . . Parts Built . | . . . . . Authchips . | . . . . . Time . | . . . . . Total Part Build Rating . | . . . . . Parts Repaired 1 | . 1 . . . Time 26 | . 26 . . . Parts Recycled . | . . . . . Recycled Matter . | . . . . . Retrieved Matter . | . . . . . Retrieved Components . | . . . . . Parts Scanalyzed . | . . . . . Part Schematics Acquired . | . . . . . Parts Damaged . | . . . . . Bothacking | -11 -10 -10 -10 -9 ------------ Run | Jun Mat Min Exi Min Used RIF Installer . | . . . . . Robots Hacked . | . . . . . Non-combat . | . . . . . Combat . | . . . . . Robot Hacks Applied . | . . . . . Relay Couplers Released . | . . . . . Fabnet Peak Effective % . | . . . . . Robots Rewired . | . . . . . Allies Hacked . | . . . . . Hacks Repelled . | . . . . . Allies | -11 -10 -10 -10 -9 -------- Run | Jun Mat Min Exi Min Total Allies . | . . . . . Largest Group . | . . . . . Highest-Rated Group . | . . . . . Highest-Rated Ally . | . . . . . Total Orders . | . . . . . Ally Attacks . | . . . . . Total Damage . | . . . . . Kills . | . . . . . Allies Corrupted . | . . . . . Allies Melted . | . . . . . Intel | -11 -10 -10 -10 -9 ------- Run | Jun Mat Min Exi Min Robot Analysis Total 2 | . 2 . . . Derelict Logs Recovered 1 | . . . . 1 Drone Launches . | . . . . . Drone Recoveries . | . . . . . Exploration | -11 -10 -10 -10 -9 ------------- Run | Jun Mat Min Exi Min Turns Passed 2342 | 72 950 402 350 568 Spaces Moved 1257 | 42 457 227 219 312 Core 5 | 5 . . . . Treads 1252 | 37 457 227 219 312 Legs . | . . . . . Wheels . | . . . . . Hover . | . . . . . Flight . | . . . . . Fastest Speed 50 | 50 160 160 160 160 Average Speed 159 | 146 160 160 160 160 Slowest Speed 240 | 160 160 160 160 240 Overloaded Moves . | . . . . . Propulsion Burnouts . | . . . . . Robots Hopped . | . . . . . Cave-ins Triggered . | . . . . . Exploration Rate (%) 53 | 3 81 57 61 65 Regions Visited 4 Branch Regions 3 Pre-discovered Areas . | . . . . . Known Exits Taken . | . . . . . Unknown Exits Taken 4 | 1 1 1 1 . Scrap Searched 1 | . . . . 1 Spaces Dug . | . . . . . Terrain Destroyed 11 | . . . . 11 Melee . | . . . . . Projectile 2 | . . . . 2 AOE 9 | . . . . 9 Terrain Rammed . | . . . . . Walls Destroyed . | . . . . . Machines Disabled . | . . . . . Actions | -11 -10 -10 -10 -9 --------- Run | Jun Mat Min Exi Min Total 1452 | 49 583 241 219 360 Wait 100 | . 67 2 . 31 Move 1253 | 41 456 226 218 312 Hop . | . . . . . Pick Up 12 | 2 8 . 1 1 Fast Attach 8 | 6 2 . . . Attach 4 | . 1 . . 3 Detach 1 | . 1 . . . Swap 4 | . 1 . . 3 Drop . | . . . . . Fire 69 | . 47 12 . 10 Melee . | . . . . . Ram . | . . . . . Kick . | . . . . . Crush 1 | . . 1 . . Escape Stasis . | . . . . . Rewire . | . . . . . Trap . | . . . . . Miscellaneous . | . . . . . Route ------- -11/Junkyard -10/Materials (discovered 4 exits: [*Mat x3] / [*Min]) -10/Mines (discovered 2 exits: [*Mat] / *Exi) -10/Exiles (discovered 2 exits: [*Min x2]) -9/Mines History --------- Turn | Location | Event 3 | -11/Junkyard | Discovered new exit (range 15) 73 | -11/Junkyard | Entered Materials 302 | -10/Materials | Build established: Mutant 321 | -10/Materials | Core integrity fell below 50% 409 | -10/Materials | Discovered new exit (range 14) 636 | -10/Materials | Discovered new exit (range 5) 780 | -10/Materials | Discovered new exit (range 16) 890 | -10/Materials | Repaired Assault Rifle 955 | -10/Materials | Discovered new exit (range 7) 1023 | -10/Materials | Entered Mines 1233 | -10/Mines | Discovered new exit (range 7) 1284 | -10/Mines | Core integrity fell below 20% 1418 | -10/Mines | Deemed a non-threat by the Exiles lab entrance 1418 | -10/Mines | Discovered new exit (range 5) 1425 | -10/Mines | Entered Exiles 1451 | -10/Exiles | Discovered new exit (range 15) 1470 | -10/Exiles | Met 8R-AWN 1493 | -10/Exiles | Met EX-HEX 1542 | -10/Exiles | Met EX-BIN 1560 | -10/Exiles | Aligned with FarCom system 1561 | -10/Exiles | Given EX-Vault access code 1600 | -10/Exiles | Opened EX-Vault 1609 | -10/Exiles | Found Cloak of Protection 1642 | -10/Exiles | Warned to stay clear of 0b10 Research branches 1690 | -10/Exiles | Met EX-DEC 1759 | -10/Exiles | Discovered new exit (range 10) 1775 | -10/Exiles | Left Exiles lab with Cloak of Protection 1775 | -10/Exiles | Entered Mines 1798 | -9/Mines | Learned Materials terminal intel 1804 | -9/Mines | Assembled infested the area 1852 | -9/Mines | Lost 3 parts (1p1n1w) 1877 | -9/Mines | A weapon hastily lodged in a ceiling crevice suddenly fell to the ground 1992 | -9/Mines | Found a hidden stash of uninstalled traps 2343 | -9/Mines | Destroyed by L-31 Rogue with Katana Last Messages --------------- 01816_ as-52019 destroyed. 01816_ as-80283 destroyed. 01816_ as-63159 destroyed. 01818_ Lgt. Treads destroyed. 01819_ Destroyed Asb. F-torch. 01819_ as-33286 destroyed. 01819_ as-70833 destroyed. 01820_ Lgt. Ion Engine destroyed. 01821_ Assault Rifle destroyed. 01825_ as-98696 suffers critical hit (Destroy). 01825_ as-98696 destroyed. 01826_ as-19268 destroyed. 01877_ A Hvy. Battle Rifle has been hastily shoved under some rubble with a note attached: "To battle!" 01881_ Acquired Hvy. Battle Rifle. 01890_ System corrupted: Matter fused (-8). 01990_ JO|#XUC, Q7KWWVKA8 LJ>8TFYRKVVI|3DQS% 01992_ A stash of uninstalled traps is collected here! 02186_ #:GSPN&HQYS8P3FLILF6ZWB%EE&T:FA>QDE6C 02339_ L-31 Rogue knocked back. Map ----- +----------------------------------------------------+ | | | | | | | | | | | | | | | ??????????????????????????????????????? | | ??????????????????????????????????????? | | ??????????????????????????????????????? | | ??????????????????????????????????????? | | ??????????????????????????????????????? | | ??????????????????????????????????????? | | ??????????????????????????????????????? | | ??????????????????????????????????????? | | ??????????????????????????????????????? | | ??????????????????????????????????????? | | ??##????####??????????????????????????? | | ?## #??## ##?????????????????????????? | | ?# ### ##????????????????????????? | | ?# ###??????????????????????? | | ?# ##?????????????????????? | | ??# k #?????????????????????? | | ??# ##????????????????????? | | ??# ######???????????????? | | ??## @l % ????????? | | ??## g % ????????? | | ??# % ;##;######?????????? | | ??# ##?????????????????? | | ??## #??????????????????? | | ???##### ##??????????????????? | | ???????## ##???????????????????? | | ????????## #??######????????????? | | ?????????# ##?## ##???????????? | | ?????????# #### #???????????? | | ?????????# ## ##??????????? | | ?????????## #??????????? | | ??????????## #??????????? | | ??????????## #??????????? | | ?????????## ##??????????? | | ????????## ####???????????? | | ????????# ##??????????????? | | ????????# ### #???????????????? | | ????????## #?##### #???????????????? | | ?????????## #?????# #???????????????? | | ??????????# #?????# ##??????????????? | | ??????????# #?????# ##?????????????? | | ??????????# ####### ######????????? | | ??????##?## ## #????????? | | ??????# ## ##### #????????? | +----------------------------------------------------+ Best States ------------- Heat Dissipation 25 Energy Generation 10 Energy Capacity 250 Matter Stores 300 Matter Capacity 300 Sight Range 16 Terrain Scan Density 10 Evasion (%) 40 Recoil Reduction 2 Item Schematics ----------------- None Robot Schematics ------------------ None Fabricated ------------ Nothing Alien Tech Used ----------------- None Achievements -------------- None Challenges ------------ None Game ------ Seed ThiefParticleBox Manual? 0 Play Time 00:09:34 Cumulative 68.7 hours Start 2023.12.17 @ 07:55:46 End 2023.12.17 @ 08:03:28 Sessions 1 Manual Loads 0 Difficulty Rogue Special Mode None Game No. 97 Rogue 97 Adventurer 0 Explorer 0 Win Type - Total 1 Types 1/0/0/0/0/0/0/0/0 Lore% 37 Gallery% 48 Achievement% 42 Wizard Run 0 Options --------- ASCII 0 Keyboard 1 Movement Numpad Keybinds 0 Fullscreen 2 Font 18/SmallcapsGlow Map View 76x50 Tactical HUD 1 Map Filters NONE Filters NONE Steam 1 RUN: efae292a-4a0a-4bb6-a3bc-374675190c55